Cogmind - Beta 14 @@@ ROGUE MODE // 2024.09.03 @ 13:50:52 Player: Minty Result: Destroyed by Y-54 Guardian with Gatling Laser Performance ------------- Evolutions (0) 0 Regions Visited (3) 600 Robots Destroyed (34) 170 Value Destroyed (696) 696 Prototype IDs (0) 0 Alien Tech Used (0) 0 Bonus (0) 0 TOTAL SCORE: 1466 Bonus ------- None Cogmind --------- Core Integrity 0/250 Matter 148/300 Energy 200/200 System Corruption 10% Temperature Warm (198) Movement Rolling (125) Ox3 Location -7/Recycling Parts ------- > --- POWER (1) -------- Subdweller Power Source > --- PROPULSION (2) --- Wheel Subdweller Monowheel > --- UTILITY (2) ------ Large Storage Unit Hacking Suite > --- WEAPON (2) ------- Subdweller Machine Gun Subdweller Machine Gun > --- INVENTORY (15) --- Improved Heat Sink Humpback High-capacity Matter Pod (53) Structural Scanner ECM Suite Core Shielding Scrap Shield Tractor Beam Cobbler Unit Riot Gun Grenade Launcher Peak State ------------ > --- POWER ------------ Subdweller Power Source > --- PROPULSION ------- Wheel Subdweller Monowheel > --- UTILITY ---------- Large Storage Unit Hacking Suite > --- WEAPON ----------- Subdweller Machine Gun Subdweller Machine Gun > --- INVENTORY -------- Improved Heat Sink Humpback High-capacity Matter Pod Structural Scanner ECM Suite Core Shielding Scrap Shield Tractor Beam Cobbler Unit Riot Gun Grenade Launcher [Rating: 15] Favorites ----------- Power Ion Engine Engine Ion Engine Power Core Light Nuclear Core Propulsion Light Treads Treads Light Treads Leg Aluminum Leg Wheel Wheel Utility Large Storage Unit Device Improved Heat Sink Storage Large Storage Unit Hackware Hacking Suite Protection Core Shielding Weapon Beam Cannon Energy Gun EM Pulse Gun Energy Cannon Beam Cannon Ballistic Gun Subdweller Machine Gun Launcher Grenade Launcher Special Weapon Flamer Build | -11 -10 -10 -7 ------- Run | Yrd Mat Sub Rec Slots Evolved . | . . . . Power . | . . . . Propulsion . | . . . . Utility . | . . . . Weapon . | . . . . Parts Attached 45 | . 23 17 5 Power 5 | . 2 2 1 Engine 4 | . 2 1 1 Core 1 | . . 1 . Reactor . | . . . . Propulsion 9 | . 5 4 . Treads 5 | . 4 1 . Leg 1 | . 1 . . Wheel 3 | . . 3 . Hover . | . . . . Flight . | . . . . Utility 6 | . 4 1 1 Device 2 | . 2 . . Storage 1 | . 1 . . Processor . | . . . . Hackware 1 | . . . 1 Protection 2 | . 1 1 . Artifact . | . . . . Weapon 25 | . 12 10 3 Energy Gun 6 | . 6 . . Energy Cannon 7 | . 4 3 . Ballistic Gun 5 | . 1 2 2 Ballistic Cannon . | . . . . Launcher 6 | . 1 4 1 Special Weapon 1 | . . 1 . Impact Weapon . | . . . . Slashing Weapon . | . . . . Piercing Weapon . | . . . . Special Melee Weapon . | . . . . Unidentified Prototypes . | . . . . Corrupted Parts 2 | . 2 . . System Corruption 8 | . 8 . . Parts Lost 6 | . 1 5 . Power 2 | . . 2 . Propulsion 1 | . . 1 . Utility . | . . . . Weapon 3 | . 1 2 . Highest Loss Streak 3 | . 1 3 . To Critical Strikes . | . . . . Average Slot Usage (%) 95 | . 98 92 96 Engine 10 | . 14 5 10 Core 2 | . . 5 . Treads 15 | . 17 13 . Leg 5 | . 10 . . Wheel 6 | . . 12 28 Device 5 | . 5 5 . Storage 14 | . 14 14 14 Protection 7 | . 6 8 1 Energy Gun 7 | . 14 . . Energy Cannon 11 | . 11 12 . Ballistic Gun 6 | . 1 10 20 Launcher 1 | . . 3 7 Peak Build Rating 15 | . 10 14 15 Average Rating 9 | . 8 10 13 On Entrance 8 | 6 6 10 11 Naked Turns . | . . . . Heaviest Build 34 | 11 32 34 33 Greatest Support 40 | 20 40 40 30 Greatest Overweight (x) 3 | . . 3 3 Average Overweight (x) . | . . . 1 Largest Inventory Capacity 15 | . 15 15 15 Average Capacity 12 | . 9 15 15 Most Carried 15 | . 11 15 15 Average Carried 11 | . 8 14 14 Final Capacity 15 | 8 15 15 15 Final Carried 15 | 6 11 15 14 Class Distribution -------------------- 100% | Mutant Dominant Class ---------------- Mutant | -10/Materials Mutant | -10/Subcaves Mutant | -7/Recycling Resources | -11 -10 -10 -7 ----------- Run | Yrd Mat Sub Rec Matter Collected 1099 | 200 436 463 . Remotely . | . . . . Salvage Created 1045 | . 788 257 . Parts 78 | . 61 17 . Haulers Intercepted 2 | . 2 . . Recyclers Shooed 2 | . 2 . . Parts Field Recycled . | . . . . Retrieved Matter . | . . . . Parts Self-Destructed 2 | . . 2 . Prevented . | . . . . Kills | -11 -10 -10 -7 ------- Run | Yrd Mat Sub Rec Combat Hostiles Destroyed 18 | . 10 8 . Guns 6 | . 5 1 . Cannons 6 | . 4 2 . AOE 6 | . 1 5 . Classes Destroyed 13 | . 9 4 . Worker 1 | . 1 . . Builder 4 | . 4 . . Tunneler 1 | . 1 . . Hauler 2 | . 2 . . Recycler 2 | . 2 . . Operator 2 | . 2 . . Turret 2 | . . 2 . Watcher 2 | . 2 . . Swarmer 6 | . 2 4 . Grunt 8 | . 8 . . Artisan 1 | . . 1 . Cobbler 2 | . . 2 . Subdweller 4 | . . 4 . Best Kill Streak 8 | . 8 5 . Combat Bots Only 4 | . 3 4 . Max Kills in Single Turn 4 | . 4 2 . Gunslinging . | . . . . Exploded 2 | . 1 2 . Melee . | . . . . Uniques/NPCs Destroyed . | . . . . Combat | -11 -10 -10 -7 -------- Run | Yrd Mat Sub Rec Hostile Shots Fired 199 | . 79 117 3 Missed 70 | . 20 48 2 Damage Taken 1450 | . 657 782 11 Core 253 | . 92 150 11 Absorbed by Shields . | . . . . Redirected to Shielding 41 | . 11 30 . Core Remaining (%) 100 | 100 . . . Volleys Fired 102 | . 54 40 8 Largest 2 | . 2 2 2 Hottest 130 | . 120 130 60 Shots Fired 175 | . 104 62 9 Gun 71 | . 64 5 2 Cannon 79 | . 37 42 . Launcher 22 | . 3 12 7 Special 3 | . . 3 . Kinetic 10 | . 3 5 2 Thermal 112 | . 67 45 . Explosive 22 | . 3 12 7 Electromagnetic 31 | . 31 . . Robot Hit Streak 12 | . 8 12 3 Robot Miss Streak 5 | . 5 3 . Penetration Max . | . . . . Secondary Targets . | . . . . Shots Hit Robots 88 | . 54 32 2 Core Hits 58 | . 32 26 . Critical Kills . | . . . . Critical Parts Destroyed . | . . . . Critical Strikes 2 | . 2 . . Burn 1 | . 1 . . Corrupt 1 | . 1 . . Melee Attacks . | . . . . Impact . | . . . . Slashing . | . . . . Piercing . | . . . . Sneak Attacks . | . . . . Combat Hostiles . | . . . . Follow-up Attacks . | . . . . Damage Inflicted 1958 | . 1077 849 32 Guns 697 | . 587 78 32 Cannons 630 | . 282 348 . Explosions 570 | . 177 393 . Melee . | . . . . Ramming 31 | . 31 . . Kinetic 128 | . 18 78 32 Thermal 1064 | . 686 378 . Explosive 393 | . . 393 . Electromagnetic 342 | . 342 . . Impact . | . . . . Slashing . | . . . . Piercing . | . . . . Highest Corruption 10 | . 10 10 10 Average Corruption 9 | . 8 10 10 Corruption Purged . | . . . . Corruption Blocked . | . . . . Effects 69 | . 22 43 4 Message Errors 14 | . 5 8 1 Matter Fused 18 | . 4 14 . Heat Flow Errors 5 | . 2 1 2 Energy Discharges 9 | . 2 6 1 Parts Rejected 1 | . 1 . . Parts Fused 1 | . 1 . . Data Loss (minor) 11 | . 3 8 . Data Loss (major) 3 | . . 3 . Misfires 2 | . 2 . . Alerts 1 | . 1 . . Misdirections 1 | . . 1 . Weapon Failures 3 | . 1 2 . Overload Shots . | . . . . Overflow Damage 10 | . 10 . . Projectiles . | . . . . Explosions 10 | . 10 . . Melee . | . . . . Knockbacks . | . . . . Impact . | . . . . Kinetic . | . . . . Secondary . | . . . . Self-Inflicted Damage 73 | . 73 . . Shots 2 | . 2 . . Rammed 2 | . 2 . . Targets Rammed 4 | . 4 . . Kicked 2 | . 2 . . Crushed . | . . . . Highest Temperature 411 | . 411 161 192 Average Temperature 111 | . 123 28 106 Received Heat Transfer 477 | . 183 288 6 Effects 1 | . 1 . . Energy Bleed 1 | . 1 . . Siege Activations . | . . . . Robots Corrupted . | . . . . Combat Hostiles . | . . . . Parts Fried . | . . . . Impact Corruptions . | . . . . Robots Melted . | . . . . Combat Hostiles . | . . . . Parts Melted 3 | . 2 1 . Heat Transferred 2488 | . 1508 980 . Parts Sabotaged . | . . . . Parts Stolen . | . . . . Parts Stripped . | . . . . Power Chain Reactions 3 | . 3 . . Alert | -11 -10 -10 -7 ------- Run | Yrd Mat Sub Rec Peak Influence 210 | . 210 . 13 Initial . | . . . . Average 77 | . 82 . 6 Maximum Alert Level 1 | . 1 . . Low Security (%) 97 | . 97 . 100 Level 1 2 | . 2 . . Level 2 . | . . . . Level 3 . | . . . . Level 4 . | . . . . Level 5 . | . . . . High Security . | . . . . Max Security . | . . . . Squads Dispatched 3 | . 3 . . Investigation 2 | . 2 . . Extermination . | . . . . Reinforcement 1 | . 1 . . Assault . | . . . . Garrison . | . . . . Intercept . | . . . . Searches Triggered . | . . . . Construction Impeded . | . . . . Haulers Reinforced . | . . . . Active Scanning Responses . | . . . . Cargo Convoy Interrupts . | . . . . Stealth | -11 -10 -10 -7 --------- Run | Yrd Mat Sub Rec Distress Signals . | . . . . Communications Jammed . | . . . . Distress Signals . | . . . . Times Spotted 30 | . 15 14 1 Peak Tracking Total 6 | . 3 6 . Tactical Retreats 2 | . 1 1 . Traps | -11 -10 -10 -7 ------- Run | Yrd Mat Sub Rec Traps Triggered 3 | . 1 2 . Indirectly . | . . . . Trap Hack Attempts . | . . . . Triggered . | . . . . Disarmed . | . . . . Reprogrammed . | . . . . Reused . | . . . . Traps Extracted . | . . . . Installed . | . . . . Triggered . | . . . . Machines | -11 -10 -10 -7 ---------- Run | Yrd Mat Sub Rec Machines Disabled 4 | . 1 3 . Max in Single Turn 2 | . 1 2 . Machines Repaired . | . . . . Machines Dismantled . | . . . . Machines Sabotaged . | . . . . Overloaded Fab Kills . | . . . . Hacking | -11 -10 -10 -7 --------- Run | Yrd Mat Sub Rec Machines Accessed 11 | . 9 1 1 Terminals 7 | . 7 . . Fabricators . | . . . . Repair Stations . | . . . . Recycling Units 3 | . 2 . 1 Scanalyzers . | . . . . Garrison Access . | . . . . Total Hacks 43 | . 37 5 1 Successful 26 | . 20 5 1 Failed 17 | . 17 . . Catastrophic . | . . . . Database Lockouts . | . . . . Manual 29 | . 29 . . Terminals 31 | . 31 . . Fabricators . | . . . . Repair Stations . | . . . . Recycling Units 7 | . 6 . 1 Scanalyzers . | . . . . Garrison Access . | . . . . Terminal Hacks 15 | . 10 5 . Record 5 | . . 5 . Robot Analysis 1 | . 1 . . Terminal Index 1 | . 1 . . Alert Level 3 | . 3 . . Maintenance Status 1 | . 1 . . Recall Investigation 1 | . 1 . . Zone Layout 3 | . 3 . . Fabricator Hacks . | . . . . Repair Station Hacks . | . . . . Recycling Unit Hacks 4 | . 3 . 1 Report Inventory 3 | . 2 . 1 Retrieve Components 1 | . 1 . . Scanalyzer . | . . . . Garrison Access Hacks . | . . . . Unauthorized Hacks 7 | . 7 . . Terminals 6 | . 6 . . Track 1 | . 1 . . Botnet 4 | . 4 . . Operators 1 | . 1 . . Fabricators . | . . . . Repair Stations . | . . . . Recycling Units 1 | . 1 . . Reject 1 | . 1 . . Scanalyzers . | . . . . Garrison Access . | . . . . Data Cores Recovered 1 | . 1 . . Used . | . . . . Hacking Detections 9 | . 9 . . Full Trace Events 3 | . 3 . . Feedback Events 1 | . 1 . . Corruption 1 | . 1 . . Feedback Blocked . | . . . . Robot Schematics Acquired . | . . . . Robots Built . | . . . . Authchips . | . . . . Time . | . . . . Total Robot Build Rating . | . . . . Part Schematics Acquired . | . . . . Parts Built . | . . . . Authchips . | . . . . Time . | . . . . Total Part Build Rating . | . . . . Parts Repaired . | . . . . Time . | . . . . Parts Recycled . | . . . . Recycled Matter . | . . . . Retrieved Matter . | . . . . Retrieved Components 2 | . 2 . . Parts Scanalyzed . | . . . . Part Schematics Acquired . | . . . . Parts Damaged . | . . . . Bothacking | -11 -10 -10 -7 ------------ Run | Yrd Mat Sub Rec Used RIF Installer . | . . . . Robots Hacked . | . . . . Non-combat . | . . . . Combat . | . . . . Robot Hacks Applied . | . . . . Relay Couplers Released . | . . . . Fabnet Peak Effective % . | . . . . Robots Rewired . | . . . . Allies Hacked . | . . . . Hacks Repelled . | . . . . Allies | -11 -10 -10 -7 -------- Run | Yrd Mat Sub Rec Total Allies . | . . . . Largest Group . | . . . . Highest-Rated Group . | . . . . Highest-Rated Ally . | . . . . Total Orders . | . . . . Ally Attacks . | . . . . Total Damage . | . . . . Kills . | . . . . Allies Corrupted . | . . . . Allies Melted . | . . . . Intel | -11 -10 -10 -7 ------- Run | Yrd Mat Sub Rec Robot Analysis Total 1 | . 1 . . Derelict Logs Recovered . | . . . . Drone Launches . | . . . . Drone Recoveries . | . . . . Exploration | -11 -10 -10 -7 ------------- Run | Yrd Mat Sub Rec Turns Passed 2324 | . 1172 1061 91 Spaces Moved 1381 | 1 635 683 62 Core . | . . . . Treads 641 | . 370 271 . Legs 266 | 1 265 . . Wheels 474 | . . 412 62 Hover . | . . . . Flight . | . . . . Fastest Speed 95 | 120 120 95 95 Average Speed 136 | 120 143 133 107 Slowest Speed 240 | 120 160 240 125 Overloaded Moves . | . . . . Propulsion Burnouts . | . . . . Robots Hopped . | . . . . Cave-ins Triggered . | . . . . Exploration Rate (%) 34 | 2 91 39 7 Regions Visited 3 Branch Regions 2 Pre-discovered Areas . | . . . . Known Exits Taken . | . . . . Unknown Exits Taken 3 | 1 1 1 . Scrap Searched . | . . . . Spaces Dug 12 | . 6 . 6 Terrain Destroyed 135 | . 25 56 54 Melee . | . . . . Projectile . | . . . . AOE 135 | . 25 56 54 Terrain Rammed . | . . . . Walls Destroyed . | . . . . Machines Disabled . | . . . . Actions | -11 -10 -10 -7 --------- Run | Yrd Mat Sub Rec Total 1626 | . 792 758 76 Wait 61 | . 57 3 1 Move 1378 | . 634 682 62 Hop . | . . . . Pick Up 17 | . 9 8 . Fast Attach 5 | . 3 2 . Attach 9 | . 4 4 1 Detach 3 | . 1 2 . Swap 31 | . 16 11 4 Drop 16 | . 10 6 . Fire 102 | . 54 40 8 Melee . | . . . . Ram . | . . . . Kick 2 | . 2 . . Crush 2 | . 2 . . Escape Stasis . | . . . . Rewire . | . . . . Trap . | . . . . Miscellaneous . | . . . . Route ------- -11/Scrapyard -10/Materials (discovered 6 exits: [*Mat x3] / [*Min x2] / *Sub) -10/Subcaves (discovered 3 exits: *Mat x2 / *Rec) -7/Recycling History --------- Turn | Location | Event 1 | -11/Scrapyard | Discovered new exit (range 0) 1 | -11/Scrapyard | Entered Materials 159 | -10/Materials | Discovered new exit (range 15) 159 | -10/Materials | Discovered new exit (range 18) 317 | -10/Materials | Build established: Mutant 350 | -10/Materials | Discovered new exit (range 16) 602 | -10/Materials | Discovered new exit (range 16) 779 | -10/Materials | Discovered new exit (range 15) 874 | -10/Materials | System corruption reached 10% 1157 | -10/Materials | Discovered new exit (range 10) 1173 | -10/Materials | Entered Subcaves 1186 | -10/Subcaves | Discovered new exit (range 9) 1585 | -10/Subcaves | Discovered new exit (range 14) 1614 | -10/Subcaves | Core integrity fell below 50% 1646 | -10/Subcaves | Lost 3 parts (1p1n1w) 1951 | -10/Subcaves | Shifting Twisted Machinery released Riot Gun 1952 | -10/Subcaves | Shifting Twisted Machinery released Scrap Shield 1995 | -10/Subcaves | Core integrity fell below 20% 2189 | -10/Subcaves | Visited Clippyterm 2192 | -10/Subcaves | Identified exit to Materials 2192 | -10/Subcaves | Learned Factory fabricator intel 2234 | -10/Subcaves | Entered Recycling 2325 | -7/Recycling | Destroyed by Y-54 Guardian with Gatling Laser Last Messages --------------- >>Record "01-MTF" It looks like you're after the notorious thief from 0b1. I don't know where they are, but my data indicates that someone they're looking for is frequently seen in Scraptown. 02211_ System corrupted: Energy discharge (-32). 02232_ System corrupted: Matter fused (-8). LOCATION=UNKNOWN GOAL=ESCAPE 02245_ Connecting with Recycling Unit... 02245_ Current location identified: Recycling >>Recycling(Report) Matter reserves: 0 Inventory: Empty 02251_ 3|9>DPWPKY>=Z0D/Y>D8V3EBOSG89R%43%FBXB 02269_ System corrupted: Heat flow error (+151). 02291_ System corrupted: Energy discharge (-56). 02300_ The unstable cave ceiling collapses. 02304_ Sub. Monowheel shoots sparks and powers down. 02323_ System corrupted: Heat flow error (+192). 02324_ Y-54 Guardian springs to life. Map ----- +----------------------------------------------------+ | ????????????????????????????????????????????????? | | ????????????????????????????????????????????????? | | ????????????????????????????????????????????????? | | ????????????????????????????????????????????????? | | ????????????????????????????????????????????????? | | ????????????????????????????????????????????????? | | ????????????????????????????????????????????????? | | ????????????????????????????????????????????????? | | ????????????????????????????????????????????????? | | ????????????????????????????????????????????????? | | ????????????????????????????????????????????????? | | ??????????????????????####??????????????????????? | | ?????????????????????? #?????????????????????? | | ?????????????????????? #?????????????????????? | | ?????????????????????? #?????????????????????? | | ??????????????????????# #?????????????????????? | | ??????????????????????# #?????????????????????? | | ??????????????????????# #?????????????????????? | | ????????#########?????# #?#######?????????????? | | ????????# #?????# #? # #?????????????? | | ????????## #????## #? ##????????????? | | ????????# #????? ## #????????????? | | ????????## # # #######Y # #????????????? | | ????????# # # #????????????? | | ????????# # # #????????????? | | ?????????# # """ # @# #????????????? | | ????????????# """ + + """"#????????????? | | ????????????#"" """ # # """"#????????????? | | ????????????#"Y """ # # """"#????????????? | | ????????????#"" """ # # """"#????????????? | | ????????????# # # #????????????? | | ????????????########### ##########????????????? | | ??????????????????????#####?????????????????????? | | ????????????????????????????????????????????????? | | ????????????????????????????????????????????????? | | ????????????????????????????????????????????????? | | ????????????????????????????????????????????????? | | ????????????????????????????????????????????????? | | ????????????????????????????????????????????????? | | | | | | | | | | | | | | | | | | | | | | | +----------------------------------------------------+ Best States ------------- Heat Dissipation 39 Energy Generation 15 Energy Capacity 250 Matter Stores 300 Matter Capacity 300 Sight Range 16 Terrain Scan Density 10 Core Shielding 20 Evasion (%) 55 Recoil Reduction 2 Offensive Hacking 10 Item Schematics ----------------- None Robot Schematics ------------------ None Fabricated ------------ Nothing Alien Tech Used ----------------- None Achievements -------------- None Challenges ------------ None Game ------ Seed ShadeEncryptedTube Manual? 0 Play Time 00:12:39 Cumulative 915.8 hours Start 2024.09.03 @ 13:36:55 End 2024.09.03 @ 13:50:52 Sessions 1 Manual Loads 0 Difficulty Rogue Special Mode None Game No. 1106 Rogue 826 Adventurer 124 Explorer 156 Win Type - Total 39 Types 28/0/8/1/1/0/0/1/0 Lore% 79 Gallery% 90 Achievement% 78 Wizard Run 0 Options --------- Layout 0 ASCII 0 Keyboard 1 Movement Numpad Keybinds 0 Fullscreen 2 Font 18/X11 Map View 76x50 Zoom Use 0% Tactical HUD 1 Map Filters NONE Filters NONE Steam 1 RUN: faeb013e-7f9e-47e8-b21e-2e0f124df954